[Event "Early-Titled-Tuesday-Blitz-May-14-2024"]
[Site "Chess.com"]
[Date "2024.05.14"]
[Round "2"]
[White "BillCoe"]
[Black "ravengelic"]
[Result "1/2-1/2"]
[WhiteElo "2180"]
[BlackElo "2679"]
[TimeControl "180+1"]
[EndTime "8:18:01 PDT"]
[Termination "Game drawn by repetition"]

1. e4 {[%clk 0:03:00.9]} 1... c5 {[%clk 0:03:00.1]} 2. Nf3 {[%clk 0:03:01]} 2...
g6 {[%clk 0:03:00.7]} 3. d4 {[%clk 0:03:00.6]} 3... cxd4 {[%clk 0:03:01.6]} 4.
Nxd4 {[%clk 0:03:01.1]} 4... Bg7 {[%clk 0:03:02]} 5. Be3 {[%clk 0:02:59.9]} 5...
Nc6 {[%clk 0:03:02.6]} 6. Nc3 {[%clk 0:02:58.9]} 6... Nf6 {[%clk 0:03:03.1]} 7.
f3 {[%clk 0:02:58.8]} 7... O-O {[%clk 0:03:02.7]} 8. Qd2 {[%clk 0:02:58.6]} 8...
d5 {[%clk 0:03:02]} 9. exd5 {[%clk 0:02:55.9]} 9... Nxd5 {[%clk 0:03:01.9]} 10.
Nxd5 {[%clk 0:02:55.5]} 10... Qxd5 {[%clk 0:03:01.6]} 11. Nxc6 {[%clk
0:02:31.7]} 11... bxc6 {[%clk 0:03:00.7]} 12. Qxd5 {[%clk 0:02:29.3]} 12... cxd5
{[%clk 0:03:01.6]} 13. c3 {[%clk 0:02:28.4]} 13... Rb8 {[%clk 0:03:01.6]} 14.
Bc1 {[%clk 0:02:21.9]} 14... d4 {[%clk 0:02:50.6]} 15. cxd4 {[%clk 0:02:16.1]}
15... Bxd4 {[%clk 0:02:50.2]} 16. Bd3 {[%clk 0:02:09.7]} 16... Bxb2 {[%clk
0:02:49.1]} 17. Bxb2 {[%clk 0:01:58.4]} 17... Rxb2 {[%clk 0:02:50]} 18. O-O
{[%clk 0:01:57.2]} 18... Rd8 {[%clk 0:02:49.3]} 19. Rfd1 {[%clk 0:01:36.1]}
19... Be6 {[%clk 0:02:44.5]} 20. a4 {[%clk 0:01:34.4]} 20... a5 {[%clk
0:02:42.9]} 21. Bb5 {[%clk 0:01:31.3]} 21... Rc8 {[%clk 0:02:24.3]} 22. Rac1
{[%clk 0:01:30.7]} 22... Rxc1 {[%clk 0:01:58.3]} 23. Rxc1 {[%clk 0:01:31.6]}
23... h5 {[%clk 0:01:50]} 24. Rc7 {[%clk 0:01:26.7]} 24... Bd5 {[%clk
0:01:47.5]} 25. Rxe7 {[%clk 0:01:19.3]} 25... h4 {[%clk 0:01:44.6]} 26. h3
{[%clk 0:01:18.9]} 26... Kg7 {[%clk 0:01:41.1]} 27. Ra7 {[%clk 0:01:18]} 27...
Rb1+ {[%clk 0:01:28.7]} 28. Kf2 {[%clk 0:01:17.2]} 28... Rb2+ {[%clk 0:01:29.4]}
29. Kg1 {[%clk 0:01:16.1]} 29... Kf6 {[%clk 0:01:28.4]} 30. Rxa5 {[%clk
0:01:14.4]} 30... Rb1+ {[%clk 0:01:26.4]} 31. Kf2 {[%clk 0:01:14]} 31... Rb2+
{[%clk 0:01:26.9]} 32. Kf1 {[%clk 0:01:13.3]} 32... Ra2 {[%clk 0:01:23]} 33. Kg1
{[%clk 0:01:04.7]} 33... g5 {[%clk 0:01:18.3]} 34. Bd3 {[%clk 0:00:59.4]} 34...
Bb3 {[%clk 0:01:10.8]} 35. Rf5+ {[%clk 0:00:50.3]} 35... Ke6 {[%clk 0:01:04.8]}
36. Rxg5 {[%clk 0:00:47.4]} 36... Rxa4 {[%clk 0:00:58.9]} 37. Rg4 {[%clk
0:00:44.4]} 37... Rxg4 {[%clk 0:00:50.9]} 38. hxg4 {[%clk 0:00:40.5]} 38... Ke5
{[%clk 0:00:40.2]} 39. Bf5 {[%clk 0:00:38.5]} 39... Kf4 {[%clk 0:00:36.7]} 40.
Kf2 {[%clk 0:00:38.4]} 40... f6 {[%clk 0:00:35.3]} 41. Bd7 {[%clk 0:00:37.8]}
41... Bc4 {[%clk 0:00:35.4]} 42. Bc8 {[%clk 0:00:37.8]} 42... Bd3 {[%clk
0:00:35.6]} 43. Bd7 {[%clk 0:00:38.1]} 43... Bc4 {[%clk 0:00:35.8]} 44. Bc8
{[%clk 0:00:38.2]} 44... Bb5 {[%clk 0:00:36]} 45. Be6 {[%clk 0:00:29.8]} 45...
Ba6 {[%clk 0:00:36]} 46. Bd7 {[%clk 0:00:29.6]} 46... Bb7 {[%clk 0:00:35.7]} 47.
Be6 {[%clk 0:00:28.7]} 47... Bc6 {[%clk 0:00:36]} 48. Bc8 {[%clk 0:00:28.8]}
48... Bd5 {[%clk 0:00:36]} 49. Bd7 {[%clk 0:00:28.8]} 49... Bc4 {[%clk
0:00:35.8]} 1/2-1/2

[Event "Early-Titled-Tuesday-Blitz-May-14-2024"]
[Site "Chess.com"]
[Date "2024.05.14"]
[Round "2"]
[White "jaskol95"]
[Black "dinushkipremanath"]
[Result "0-1"]
[WhiteElo "2526"]
[BlackElo "1979"]
[TimeControl "180+1"]
[EndTime "8:18:01 PDT"]
[Termination "dinushkipremanath won on time"]

1. e4 {[%clk 0:02:56]} 1... e6 {[%clk 0:03:00.9]} 2. d4 {[%clk 0:02:52]} 2... d5
{[%clk 0:03:00.9]} 3. Nc3 {[%clk 0:02:52.7]} 3... Nf6 {[%clk 0:03:00.2]} 4. e5
{[%clk 0:02:53]} 4... Nfd7 {[%clk 0:02:57.4]} 5. f4 {[%clk 0:02:53.6]} 5... c5
{[%clk 0:02:56.9]} 6. Nf3 {[%clk 0:02:54.3]} 6... Nc6 {[%clk 0:02:56.5]} 7. Be3
{[%clk 0:02:53.7]} 7... a6 {[%clk 0:02:55.6]} 8. Qd2 {[%clk 0:02:48.7]} 8... b5
{[%clk 0:02:54.7]} 9. dxc5 {[%clk 0:02:46.3]} 9... Bxc5 {[%clk 0:02:51.6]} 10.
Bxc5 {[%clk 0:02:44.7]} 10... Nxc5 {[%clk 0:02:52.5]} 11. Nd4 {[%clk 0:02:39.9]}
11... Bb7 {[%clk 0:02:50]} 12. Nxc6 {[%clk 0:02:31.5]} 12... Bxc6 {[%clk
0:02:50.9]} 13. Qd4 {[%clk 0:02:28.2]} 13... Qb6 {[%clk 0:02:45.5]} 14. Be2
{[%clk 0:02:25.7]} 14... b4 {[%clk 0:02:44.5]} 15. Nd1 {[%clk 0:02:11.8]} 15...
Nd7 {[%clk 0:02:43.7]} 16. Qxb6 {[%clk 0:02:10.7]} 16... Nxb6 {[%clk 0:02:44.6]}
17. O-O {[%clk 0:02:09.2]} 17... Na4 {[%clk 0:02:44.3]} 18. a3 {[%clk
0:02:05.7]} 18... bxa3 {[%clk 0:02:38.5]} 19. Rxa3 {[%clk 0:02:05.2]} 19... O-O
{[%clk 0:02:37.9]} 20. b3 {[%clk 0:01:58.2]} 20... Nc5 {[%clk 0:02:37]} 21. Nf2
{[%clk 0:01:57.4]} 21... Bb5 {[%clk 0:02:33.8]} 22. Bxb5 {[%clk 0:01:42]} 22...
axb5 {[%clk 0:02:34.6]} 23. Rfa1 {[%clk 0:01:42.7]} 23... Rxa3 {[%clk
0:02:31.4]} 24. Rxa3 {[%clk 0:01:43.6]} 24... Rb8 {[%clk 0:02:29.3]} 25. Kf1
{[%clk 0:01:39.6]} 25... h6 {[%clk 0:02:25]} 26. Ke2 {[%clk 0:01:39.8]} 26... g5
{[%clk 0:02:19.6]} 27. g3 {[%clk 0:01:35.7]} 27... Kg7 {[%clk 0:02:19.2]} 28.
Ke3 {[%clk 0:01:34.4]} 28... Kg6 {[%clk 0:02:19.3]} 29. Kd4 {[%clk 0:01:32.9]}
29... Rc8 {[%clk 0:02:14.7]} 30. Ra5 {[%clk 0:01:22.4]} 30... Nd7 {[%clk
0:02:09.4]} 31. c3 {[%clk 0:01:21]} 31... Rb8 {[%clk 0:02:04]} 32. Nd3 {[%clk
0:01:17.3]} 32... Kf5 {[%clk 0:01:58.4]} 33. Ra7 {[%clk 0:01:13]} 33... Rd8
{[%clk 0:01:57.1]} 34. Rb7 {[%clk 0:01:11]} 34... gxf4 {[%clk 0:01:55.9]} 35.
gxf4 {[%clk 0:01:10.4]} 35... f6 {[%clk 0:01:56.2]} 36. Rxb5 {[%clk 0:01:05.1]}
36... fxe5+ {[%clk 0:01:55.9]} 37. fxe5 {[%clk 0:01:04.1]} 37... Rg8 {[%clk
0:01:53.9]} 38. Rb7 {[%clk 0:00:55.9]} 38... Rg4+ {[%clk 0:01:52.4]} 39. Ke3
{[%clk 0:00:56.6]} 39... Nxe5 {[%clk 0:01:50.9]} 40. Rh7 {[%clk 0:00:19.1]}
40... Rh4 {[%clk 0:01:45.9]} 41. Nxe5 {[%clk 0:00:15.7]} 41... Kxe5 {[%clk
0:01:45.8]} 42. b4 {[%clk 0:00:16.4]} 42... Rh3+ {[%clk 0:01:44.6]} 43. Kd2
{[%clk 0:00:15.5]} 43... Rxh2+ {[%clk 0:01:44.9]} 44. Kd3 {[%clk 0:00:16.1]}
44... Rh3+ {[%clk 0:01:38.4]} 45. Kc2 {[%clk 0:00:16.2]} 45... d4 {[%clk
0:01:38.8]} 46. c4 {[%clk 0:00:15.6]} 46... Rc3+ {[%clk 0:01:38.3]} 47. Kb2
{[%clk 0:00:15.2]} 47... Rxc4 {[%clk 0:01:38.5]} 48. Kb3 {[%clk 0:00:16]} 48...
Rc3+ {[%clk 0:01:38.5]} 49. Ka4 {[%clk 0:00:16.6]} 49... d3 {[%clk 0:01:37.8]}
50. Rxh6 {[%clk 0:00:17]} 50... d2 {[%clk 0:01:38.2]} 51. Rh5+ {[%clk
0:00:16.3]} 51... Kd6 {[%clk 0:01:34.5]} 52. Rh8 {[%clk 0:00:11.9]} 52... Rc7
{[%clk 0:01:28.7]} 53. Rh1 {[%clk 0:00:09.1]} 53... Rc1 {[%clk 0:01:28.4]} 54.
Rh8 {[%clk 0:00:09.8]} 54... d1=Q+ {[%clk 0:01:28.3]} 55. Ka5 {[%clk 0:00:09.7]}
55... Ra1+ {[%clk 0:01:25.7]} 0-1

[Event "Early-Titled-Tuesday-Blitz-May-14-2024"]
[Site "Chess.com"]
[Date "2024.05.14"]
[Round "2"]
[White "ElCoachRene"]
[Black "IvanMorovic"]
[Result "0-1"]
[WhiteElo "1891"]
[BlackElo "2457"]
[TimeControl "180+1"]
[EndTime "8:18:03 PDT"]
[Termination "IvanMorovic won on time"]

1. Nf3 {[%clk 0:03:00.9]} 1... d5 {[%clk 0:02:58.6]} 2. d4 {[%clk 0:03:01.2]}
2... c5 {[%clk 0:02:57.3]} 3. e3 {[%clk 0:02:58.3]} 3... e6 {[%clk 0:02:53.6]}
4. c3 {[%clk 0:02:56.1]} 4... Nf6 {[%clk 0:02:53.3]} 5. Nbd2 {[%clk 0:02:53]}
5... Be7 {[%clk 0:02:45.5]} 6. Bd3 {[%clk 0:02:52.4]} 6... Nbd7 {[%clk
0:02:45.4]} 7. O-O {[%clk 0:02:51.4]} 7... b6 {[%clk 0:02:46]} 8. e4 {[%clk
0:02:51]} 8... dxe4 {[%clk 0:02:42.9]} 9. Nxe4 {[%clk 0:02:51.9]} 9... Bb7
{[%clk 0:02:42.3]} 10. Re1 {[%clk 0:02:48.2]} 10... O-O {[%clk 0:02:41.4]} 11.
Qe2 {[%clk 0:02:47.5]} 11... Qc7 {[%clk 0:02:28.2]} 12. Bg5 {[%clk 0:02:43.3]}
12... Rfe8 {[%clk 0:02:21.5]} 13. Bh4 {[%clk 0:02:41.2]} 13... Nxe4 {[%clk
0:02:04.2]} 14. Bxe4 {[%clk 0:02:31.9]} 14... Bxh4 {[%clk 0:02:03.3]} 15. Nxh4
{[%clk 0:02:22.3]} 15... Bxe4 {[%clk 0:02:01.7]} 16. Qxe4 {[%clk 0:02:20.6]}
16... Rad8 {[%clk 0:01:57.8]} 17. Nf3 {[%clk 0:02:16.4]} 17... Nf6 {[%clk
0:01:51]} 18. Qh4 {[%clk 0:02:15.8]} 18... cxd4 {[%clk 0:01:42.4]} 19. Nxd4
{[%clk 0:02:13.7]} 19... Rd5 {[%clk 0:01:43]} 20. h3 {[%clk 0:02:12.3]} 20...
Red8 {[%clk 0:01:38.8]} 21. Nf3 {[%clk 0:02:07.1]} 21... R5d6 {[%clk 0:01:29.2]}
22. a4 {[%clk 0:02:05]} 22... Qc5 {[%clk 0:01:26.6]} 23. Qf4 {[%clk 0:01:56.8]}
23... h6 {[%clk 0:01:25.6]} 24. Re5 {[%clk 0:01:51.9]} 24... Rd1+ {[%clk
0:01:22.4]} 25. Re1 {[%clk 0:01:49.7]} 25... Rxa1 {[%clk 0:01:17.8]} 26. Rxa1
{[%clk 0:01:48.4]} 26... Qd5 {[%clk 0:01:04.6]} 27. Qc7 {[%clk 0:01:43.2]} 27...
Rd7 {[%clk 0:01:01.3]} 28. Qb8+ {[%clk 0:01:40.2]} 28... Kh7 {[%clk 0:01:01.2]}
29. Qc8 {[%clk 0:01:28.6]} 29... Ne4 {[%clk 0:00:53]} 30. a5 {[%clk 0:01:19.8]}
30... bxa5 {[%clk 0:00:49.2]} 31. Qa6 {[%clk 0:01:08]} 31... Qc5 {[%clk
0:00:42.7]} 32. Qe2 {[%clk 0:01:03]} 32... f5 {[%clk 0:00:38.6]} 33. Nd4 {[%clk
0:00:58]} 33... Qb6 {[%clk 0:00:33.2]} 34. f3 {[%clk 0:00:25.2]} 34... e5 {[%clk
0:00:33.1]} 35. fxe4 {[%clk 0:00:23.2]} 35... exd4 {[%clk 0:00:33.6]} 36. cxd4
{[%clk 0:00:11.8]} 36... Qxd4+ {[%clk 0:00:33.1]} 37. Kh1 {[%clk 0:00:12.4]}
37... Qe5 {[%clk 0:00:27.7]} 38. Qa6 {[%clk 0:00:07]} 38... fxe4 {[%clk
0:00:26.9]} 39. Rxa5 {[%clk 0:00:06.1]} 39... Rd1+ {[%clk 0:00:26.2]} 0-1

[Event "Early-Titled-Tuesday-Blitz-May-14-2024"]
[Site "Chess.com"]
[Date "2024.05.14"]
[Round "2"]
[White "amanjazu"]
[Black "MAGMAchess02"]
[Result "1-0"]
[WhiteElo "2529"]
[BlackElo "2279"]
[TimeControl "180+1"]
[EndTime "8:18:04 PDT"]
[Termination "amanjazu won on time"]

1. g3 {[%clk 0:03:00.9]} 1... c5 {[%clk 0:02:50.1]} 2. Bg2 {[%clk 0:03:01.5]}
2... Nf6 {[%clk 0:02:48.5]} 3. c4 {[%clk 0:03:01.3]} 3... Nc6 {[%clk 0:02:47.7]}
4. Nc3 {[%clk 0:03:01.6]} 4... g6 {[%clk 0:02:46.5]} 5. e3 {[%clk 0:03:02]} 5...
Bg7 {[%clk 0:02:41.4]} 6. Nge2 {[%clk 0:03:02.2]} 6... O-O {[%clk 0:02:38.8]} 7.
O-O {[%clk 0:03:02.4]} 7... e6 {[%clk 0:02:38.6]} 8. d4 {[%clk 0:03:02.6]} 8...
cxd4 {[%clk 0:02:38.5]} 9. exd4 {[%clk 0:03:01.1]} 9... d5 {[%clk 0:02:38.9]}
10. cxd5 {[%clk 0:03:00.8]} 10... Nxd5 {[%clk 0:02:39.2]} 11. Nxd5 {[%clk
0:02:59.9]} 11... exd5 {[%clk 0:02:40.1]} 12. Be3 {[%clk 0:03:00.5]} 12... Re8
{[%clk 0:02:35]} 13. Qd2 {[%clk 0:02:59.3]} 13... Bg4 {[%clk 0:02:34.1]} 14. Nf4
{[%clk 0:02:57.3]} 14... Re4 {[%clk 0:02:02.7]} 15. h3 {[%clk 0:02:32.3]} 15...
Bf5 {[%clk 0:01:41.8]} 16. g4 {[%clk 0:02:19.2]} 16... Be6 {[%clk 0:01:24.7]}
17. Bxe4 {[%clk 0:01:50.3]} 17... dxe4 {[%clk 0:01:22.5]} 18. Rfd1 {[%clk
0:01:50.5]} 18... Bc4 {[%clk 0:01:05.7]} 19. b3 {[%clk 0:01:40.9]} 19... Ba6
{[%clk 0:01:05.3]} 20. Rac1 {[%clk 0:01:40.7]} 20... Qh4 {[%clk 0:01:01.9]} 21.
f3 {[%clk 0:00:54.5]} 21... Rd8 {[%clk 0:00:27.5]} 22. Qf2 {[%clk 0:00:53.9]}
22... Qe7 {[%clk 0:00:15.5]} 23. d5 {[%clk 0:00:36.7]} 23... Ne5 {[%clk
0:00:05.9]} 24. fxe4 {[%clk 0:00:37]} 24... g5 {[%clk 0:00:04]} 25. Nh5 {[%clk
0:00:37.1]} 25... Nd3 {[%clk 0:00:03.5]} 26. Rxd3 {[%clk 0:00:36.2]} 26... Bxd3
{[%clk 0:00:04.4]} 27. Nxg7 {[%clk 0:00:36.4]} 27... Kxg7 {[%clk 0:00:04.3]} 28.
Bd4+ {[%clk 0:00:35.7]} 28... f6 {[%clk 0:00:02.5]} 29. Rc7 {[%clk 0:00:23.7]}
29... Qxc7 {[%clk 0:00:01.5]} 30. Qxf6+ {[%clk 0:00:23.5]} 30... Kg8 {[%clk
0:00:02]} 31. Qh8+ {[%clk 0:00:24]} 31... Kf7 {[%clk 0:00:02.2]} 32. Qxh7+
{[%clk 0:00:24.1]} 32... Ke8 {[%clk 0:00:01.8]} 33. Qxc7 {[%clk 0:00:24.3]} 1-0

[Event "Early-Titled-Tuesday-Blitz-May-14-2024"]
[Site "Chess.com"]
[Date "2024.05.14"]
[Round "2"]
[White "Mikhail_Golubev"]
[Black "alvarorodriguezavila"]
[Result "1-0"]
[WhiteElo "2548"]
[BlackElo "2328"]
[TimeControl "180+1"]
[EndTime "8:18:06 PDT"]
[Termination "Mikhail_Golubev won on time"]

1. e4 {[%clk 0:03:00.9]} 1... c5 {[%clk 0:02:59.5]} 2. Nf3 {[%clk 0:03:00.9]}
2... g6 {[%clk 0:02:57.4]} 3. d4 {[%clk 0:03:00.1]} 3... c4 {[%clk 0:02:58.3]}
4. Bxc4 {[%clk 0:02:59.2]} 4... Bg7 {[%clk 0:02:56.2]} 5. O-O {[%clk 0:02:55.6]}
5... e6 {[%clk 0:02:53.1]} 6. Nc3 {[%clk 0:02:49.5]} 6... Ne7 {[%clk 0:02:49.3]}
7. Bf4 {[%clk 0:02:43.1]} 7... O-O {[%clk 0:02:41.9]} 8. Bd6 {[%clk 0:02:37.3]}
8... Re8 {[%clk 0:02:34.9]} 9. Qd2 {[%clk 0:02:32.2]} 9... b6 {[%clk 0:02:20.9]}
10. Nb5 {[%clk 0:02:13.1]} 10... Na6 {[%clk 0:02:09.6]} 11. Qf4 {[%clk 0:02:02]}
11... Bb7 {[%clk 0:01:59.4]} 12. a4 {[%clk 0:01:58]} 12... Rc8 {[%clk
0:01:48.9]} 13. Bb3 {[%clk 0:01:56.8]} 13... Nc6 {[%clk 0:01:24.1]} 14. c3
{[%clk 0:01:36.1]} 14... Na5 {[%clk 0:01:22.5]} 15. Ba2 {[%clk 0:01:31]} 15...
Nc4 {[%clk 0:01:04]} 16. Bxc4 {[%clk 0:01:30.2]} 16... Rxc4 {[%clk 0:01:04.6]}
17. Ne5 {[%clk 0:01:28.1]} 17... Rc8 {[%clk 0:00:27.8]} 18. Qxf7+ {[%clk
0:01:16.7]} 18... Kh8 {[%clk 0:00:28]} 19. Rae1 {[%clk 0:00:48.9]} 19... Bc6
{[%clk 0:00:21]} 20. Nxa7 {[%clk 0:00:38.3]} 20... Ra8 {[%clk 0:00:17]} 21.
Naxc6 {[%clk 0:00:36.2]} 21... dxc6 {[%clk 0:00:17.6]} 22. Qb7 {[%clk 0:00:27]}
22... Kg8 {[%clk 0:00:09.9]} 23. Ba3 {[%clk 0:00:25.8]} 23... Bxe5 {[%clk
0:00:04.6]} 24. dxe5 {[%clk 0:00:25.3]} 24... c5 {[%clk 0:00:05.5]} 25. Rd1
{[%clk 0:00:24.8]} 25... Qc8 {[%clk 0:00:05.9]} 26. Rd7 {[%clk 0:00:22.8]} 26...
Qxb7 {[%clk 0:00:05.8]} 27. Rxb7 {[%clk 0:00:22.9]} 27... Reb8 {[%clk
0:00:03.9]} 28. Rxb8+ {[%clk 0:00:23.1]} 28... Rxb8 {[%clk 0:00:03.8]} 29. Rd1
{[%clk 0:00:22.9]} 29... Rb7 {[%clk 0:00:04.4]} 30. Rd6 {[%clk 0:00:22.3]} 30...
Nc7 {[%clk 0:00:02.8]} 31. Rd7 {[%clk 0:00:19.4]} 31... Kf8 {[%clk 0:00:01.2]}
32. Kf1 {[%clk 0:00:19.3]} 32... Ke8 {[%clk 0:00:00.1]} 33. Rxh7 {[%clk
0:00:18.5]} 33... Kd8 {[%clk 0:00:00.6]} 34. Ke2 {[%clk 0:00:18.6]} 34... Kc8
{[%clk 0:00:01.2]} 35. h4 {[%clk 0:00:17.9]} 1-0

[Event "Early-Titled-Tuesday-Blitz-May-14-2024"]
[Site "Chess.com"]
[Date "2024.05.14"]
[Round "2"]
[White "NCchamp"]
[Black "komogro"]
[Result "0-1"]
[WhiteElo "2307"]
[BlackElo "2537"]
[TimeControl "180+1"]
[EndTime "8:18:08 PDT"]
[Termination "komogro won by checkmate"]

1. d4 {[%clk 0:02:54.1]} 1... Nf6 {[%clk 0:02:59]} 2. Bg5 {[%clk 0:02:53.4]}
2... d5 {[%clk 0:02:58.4]} 3. e3 {[%clk 0:02:52]} 3... c5 {[%clk 0:02:53.5]} 4.
Nc3 {[%clk 0:02:43.6]} 4... cxd4 {[%clk 0:02:52.2]} 5. exd4 {[%clk 0:02:34]}
5... Nc6 {[%clk 0:02:48]} 6. Nf3 {[%clk 0:02:29.5]} 6... Bg4 {[%clk 0:02:45]} 7.
Be2 {[%clk 0:02:20.5]} 7... Bxf3 {[%clk 0:02:38.2]} 8. Bxf3 {[%clk 0:02:21.4]}
8... e6 {[%clk 0:02:38.5]} 9. Ne2 {[%clk 0:02:12.4]} 9... Bd6 {[%clk 0:02:33.6]}
10. c3 {[%clk 0:02:11.8]} 10... h6 {[%clk 0:02:32.9]} 11. Bh4 {[%clk 0:02:11.8]}
11... g5 {[%clk 0:02:27.9]} 12. Bg3 {[%clk 0:01:51.5]} 12... g4 {[%clk
0:02:27.5]} 13. Qb3 {[%clk 0:01:29.9]} 13... gxf3 {[%clk 0:02:15.1]} 14. Qxb7
{[%clk 0:01:28.2]} 14... fxe2 {[%clk 0:02:06.9]} 15. Qxc6+ {[%clk 0:01:26.9]}
15... Ke7 {[%clk 0:02:06.9]} 16. Bh4 {[%clk 0:01:00.4]} 16... Qc7 {[%clk
0:01:58.3]} 17. Qa6 {[%clk 0:00:59.5]} 17... Rhg8 {[%clk 0:01:40.5]} 18. Qxe2
{[%clk 0:00:55.8]} 18... Rxg2 {[%clk 0:01:38.5]} 19. Qf3 {[%clk 0:00:55.3]}
19... Rg6 {[%clk 0:01:38]} 20. Ke2 {[%clk 0:00:47.2]} 20... Bf4 {[%clk
0:01:29.7]} 21. Rhg1 {[%clk 0:00:39.8]} 21... Rag8 {[%clk 0:01:29.3]} 22. Rxg6
{[%clk 0:00:33.4]} 22... Rxg6 {[%clk 0:01:30.2]} 23. a4 {[%clk 0:00:28.5]} 23...
Bxh2 {[%clk 0:01:29]} 24. Rh1 {[%clk 0:00:23.3]} 24... Qf4 {[%clk 0:01:28.2]}
25. Bxf6+ {[%clk 0:00:07.9]} 25... Rxf6 {[%clk 0:01:26.1]} 26. Qg2 {[%clk
0:00:08.3]} 26... Qf5 {[%clk 0:00:52.9]} 27. Qxh2 {[%clk 0:00:08.1]} 27... Qc2+
{[%clk 0:00:52.6]} 28. Ke3 {[%clk 0:00:07.5]} 28... Qxb2 {[%clk 0:00:41.3]} 29.
Qc7+ {[%clk 0:00:07.8]} 29... Kf8 {[%clk 0:00:41.6]} 30. Qd8+ {[%clk 0:00:07.8]}
30... Kg7 {[%clk 0:00:41.4]} 31. Rh2 {[%clk 0:00:03.1]} 31... Qxc3+ {[%clk
0:00:40.7]} 32. Ke2 {[%clk 0:00:03.3]} 32... Qc2+ {[%clk 0:00:39.9]} 33. Ke1
{[%clk 0:00:03.1]} 33... Qe4+ {[%clk 0:00:38.6]} 34. Kf1 {[%clk 0:00:03.2]}
34... Rg6 {[%clk 0:00:35.1]} 35. f3 {[%clk 0:00:01.1]} 35... Qxf3+ {[%clk
0:00:34.6]} 36. Rf2 {[%clk 0:00:01.9]} 36... Qd3+ {[%clk 0:00:33.8]} 37. Ke1
{[%clk 0:00:01.5]} 37... Rg1+ {[%clk 0:00:34.1]} 38. Rf1 {[%clk 0:00:02]} 38...
Rxf1# {[%clk 0:00:35]} 0-1

[Event "Early-Titled-Tuesday-Blitz-May-14-2024"]
[Site "Chess.com"]
[Date "2024.05.14"]
[Round "2"]
[White "jk13"]
[Black "Chessdude1987"]
[Result "1-0"]
[WhiteElo "2635"]
[BlackElo "2376"]
[TimeControl "180+1"]
[EndTime "8:18:09 PDT"]
[Termination "jk13 won on time"]

1. e4 {[%clk 0:03:00.9]} 1... e6 {[%clk 0:03:00.3]} 2. d3 {[%clk 0:02:52.7]}
2... c5 {[%clk 0:02:58.4]} 3. Nf3 {[%clk 0:02:51.9]} 3... Nc6 {[%clk 0:02:58.5]}
4. g3 {[%clk 0:02:52.4]} 4... g6 {[%clk 0:02:58.9]} 5. Bg5 {[%clk 0:02:51.9]}
5... f6 {[%clk 0:02:55.5]} 6. Be3 {[%clk 0:02:52.1]} 6... d6 {[%clk 0:02:55.5]}
7. Bg2 {[%clk 0:02:52]} 7... Bg7 {[%clk 0:02:55.4]} 8. O-O {[%clk 0:02:52.6]}
8... e5 {[%clk 0:02:54.4]} 9. c3 {[%clk 0:02:47.2]} 9... Nge7 {[%clk 0:02:52.9]}
10. d4 {[%clk 0:02:47.6]} 10... cxd4 {[%clk 0:02:51.3]} 11. cxd4 {[%clk
0:02:48.5]} 11... f5 {[%clk 0:02:49.6]} 12. dxe5 {[%clk 0:02:37.1]} 12... Nxe5
{[%clk 0:02:42.8]} 13. Nc3 {[%clk 0:02:34.8]} 13... O-O {[%clk 0:02:35.5]} 14.
Nd4 {[%clk 0:02:26.5]} 14... Kh8 {[%clk 0:02:18.6]} 15. Qb3 {[%clk 0:02:18.5]}
15... Ng4 {[%clk 0:02:05.4]} 16. Nc2 {[%clk 0:02:08.3]} 16... Nxe3 {[%clk
0:02:03.8]} 17. Nxe3 {[%clk 0:02:09.2]} 17... f4 {[%clk 0:02:02.8]} 18. Ned5
{[%clk 0:01:59.4]} 18... f3 {[%clk 0:02:00.2]} 19. Bh1 {[%clk 0:01:59.8]} 19...
Nc6 {[%clk 0:01:57.7]} 20. Rad1 {[%clk 0:01:39]} 20... Bh3 {[%clk 0:01:37.3]}
21. Rfe1 {[%clk 0:01:36.1]} 21... Qd7 {[%clk 0:01:32.5]} 22. Qa4 {[%clk
0:01:22.8]} 22... Rae8 {[%clk 0:01:22.7]} 23. Re3 {[%clk 0:01:19.7]} 23... Ne5
{[%clk 0:00:49.8]} 24. Qxa7 {[%clk 0:01:19.8]} 24... Qg4 {[%clk 0:00:31.9]} 25.
Qxb7 {[%clk 0:01:02.3]} 25... Qh5 {[%clk 0:00:29.1]} 26. Qb5 {[%clk 0:00:37.5]}
26... Bh6 {[%clk 0:00:18.6]} 27. Rde1 {[%clk 0:00:33.5]} 27... Bxe3 {[%clk
0:00:17.6]} 28. Rxe3 {[%clk 0:00:34.4]} 28... Bg2 {[%clk 0:00:12.6]} 29. Bxg2
{[%clk 0:00:32.3]} 29... fxg2 {[%clk 0:00:11.5]} 30. Nf4 {[%clk 0:00:23.5]}
30... Nf3+ {[%clk 0:00:03.5]} 31. Kxg2 {[%clk 0:00:19]} 31... Rxf4 {[%clk
0:00:03.4]} 32. Qxh5 {[%clk 0:00:17.6]} 32... gxh5 {[%clk 0:00:02.6]} 33. gxf4
{[%clk 0:00:16.5]} 33... Nh4+ {[%clk 0:00:02.8]} 34. Kf1 {[%clk 0:00:16.8]}
34... Ng6 {[%clk 0:00:02.9]} 35. f5 {[%clk 0:00:16.9]} 35... Nf4 {[%clk
0:00:03]} 36. Rf3 {[%clk 0:00:16.8]} 1-0